fUSD/lending_fUSD_20251023
["ID","MTS","AMOUNT","RATE_DAILY","PERIOD"]
[392198447,1761252554210,-500.0,0.00019988,2]
[392198448,1761252554232,-244.6234599,0.00019988,2]
[392198449,1761252557854,-255.3765401,0.00019988,2]
[392198450,1761252557876,-500.0,0.00019988,2]
[392198451,1761252557897,-500.0,0.00019988,2]
[392198452,1761252557922,-500.0,0.00019988,2]
[392198453,1761252557942,-338.49753378,0.00019988,2]
[392198454,1761252557966,-500.0,0.00019988,2]
[392198455,1761252557989,-500.0,0.00019988,2]
[392198456,1761252558011,-500.0,0.00019988,2]
[392198457,1761252558032,-500.0,0.00019988,2]
[392198458,1761252558053,-500.0,0.00019988,2]
[392198459,1761252558075,-500.0,0.00019988,2]
[392198460,1761252558097,-500.0,0.00019988,2]
[392198461,1761252558118,-500.0,0.00019988,2]
[392198462,1761252558140,-500.0,0.00019988,2]
[392198463,1761252558162,-500.0,0.00019988,2]
[392198464,1761252558183,-246.26760882,0.00019988,2]
[392198465,1761252558203,-500.0,0.00019988,2]
[392198466,1761252558223,-500.0,0.00019988,2]
[392198467,1761252558244,-500.0,0.00019988,2]
[392198468,1761252558265,-500.0,0.00019988,2]
[392198469,1761252558285,-500.0,0.00019988,2]
[392198470,1761252558306,-500.0,0.00019988,2]
[392198471,1761252558327,-500.0,0.00019988,2]
[392198472,1761252558347,-500.0,0.00019988,2]
[392198473,1761252558368,-500.0,0.00019988,2]
[392198474,1761252558390,-500.0,0.00019988,2]
[392198475,1761252558411,-500.0,0.00019988,2]
[392198476,1761252558432,-500.0,0.00019988,2]
[392198477,1761252558453,-500.0,0.00019988,2]
[392198478,1761252558475,-500.0,0.00019988,2]
[392198479,1761252558497,-500.0,0.00019988,2]
[392198480,1761252558519,-500.0,0.00019988,2]
[392198481,1761252558540,-500.0,0.00019988,2]
[392198482,1761252558562,-500.0,0.00019988,2]
[392198483,1761252558584,-500.0,0.00019988,2]
[392198484,1761252558608,-500.0,0.00019988,2]
[392198485,1761252558628,-500.0,0.00019988,2]
[392198486,1761252558649,-500.0,0.00019988,2]
[392198487,1761252558670,-500.0,0.00019988,2]
[392198488,1761252558691,-500.0,0.00019988,2]
[392198489,1761252558711,-500.0,0.00019988,2]
[392198490,1761252558732,-500.0,0.00019988,2]
[392198491,1761252558753,-500.0,0.00019988,2]
[392198492,1761252558774,-500.0,0.00019988,2]
[392198493,1761252558794,-500.0,0.00019988,2]
[392198494,1761252558816,-500.0,0.00019988,2]
[392198495,1761252558837,-624.62676088,0.00019988,2]
[392198496,1761252558860,-500.0,0.00019988,2]
[392198497,1761252558881,-500.0,0.00019988,2]
[392198498,1761252558903,-500.0,0.00019988,2]
[392198499,1761252558928,-500.0,0.00019988,2]
[392198500,1761252558949,-500.0,0.00019988,2]
[392198501,1761252558970,-500.0,0.00019988,2]
[392198502,1761252558990,-500.0,0.00019988,2]
[392198503,1761252559011,-500.0,0.00019988,2]
[392198504,1761252559032,-500.0,0.00019988,2]
[392198505,1761252559053,-240.51812857,0.00019992,2]
[392198506,1761252559072,-500.0,0.00019992,2]
[392198507,1761252559091,-378.39339847,0.00019992,2]
[392198508,1761252559110,-500.0,0.00019992,2]
[392198509,1761252559129,-240.38885622,0.00019992,2]
[392198510,1761252559149,-29078.71071316,0.00019993,2]
[392198511,1761252568615,-2096.877384,0.00019993,2]
[392198561,1761252631392,-300.0,0.00019992,2]
[392198562,1761252631402,-300.0,0.00019992,2]
[392198563,1761252631411,-519.7206,0.00019992,2]
[392198564,1761252631423,-680.2794,0.00019992,2]
[392198565,1761252631432,-300.0,0.00019992,2]
[392198566,1761252631441,-1708.78339724,0.00019993,2]
[392198567,1761252631453,-368.0,0.00019993,2]
[392198568,1761252631465,-1360.866341,0.00019993,2]
[392198580,1761252632411,-57.98148098,0.00019993,2]
[392198581,1761252632424,-425.84451,0.00019993,2]
[392198582,1761252632435,-718.78087629,0.00019993,2]
[392198583,1761252632480,-252.11824185,0.00019993,2]
[392198584,1761252632491,-1614.31558144,0.00019993,2]
[392198585,1761252632503,-4606.28187014,0.00019993,2]
[392198586,1761252632512,-556.93,0.00019996,2]
[392198587,1761252632522,-163.97471102,0.00019996,2]
[392198588,1761252632531,-151.0,0.00019996,2]
[392198589,1761252632540,-383.06,0.00020187,2]
[392198590,1761252632550,-556.93,0.0002027,2]
[392198591,1761252632559,-1000.0,0.00020521,2]
[392198592,1761252632569,-556.93,0.00020544,2]
[392198593,1761252632582,-556.93,0.00020818,2]
[392198594,1761252632591,-643.8005641,0.00021068,2]
[392198595,1761252632600,-556.95,0.00021092,2]
[392198596,1761252632610,-166.66,0.00021666,2]
[392198597,1761252632619,-420.0,0.00021769,2]
[392198598,1761252632629,-1317.0,0.00021874,2]
[392198599,1761252632638,-4000.0,0.00021879,2]
[392198600,1761252632647,-195.0,0.00021879,2]
[392198601,1761252632656,-2500.0,0.00021879,2]
[392198602,1761252632666,-250.0,0.00021924,2]
[392198603,1761252632675,-903.07967562,0.00021924,2]
[392198604,1761252632685,-250.0,0.00021924,2]
[392198605,1761252632694,-416.89903315,0.00021925,2]
[392198606,1761252632703,-40792.53685124,0.00021986,2]
[392198607,1761252632713,-179.51902844,0.00021986,2]
[392198608,1761252632722,-2500.0,0.00021991,2]
[392198609,1761252632732,-307.08289638,0.00021992,2]
[392198610,1761252632742,-166.68,0.00022528,2]
[392198611,1761252632752,-42288.5603961,0.00022612,2]
[392198612,1761252632761,-4607.34,0.00023116,2]
[392198613,1761252632771,-395.0,0.00023704,2]
[392198614,1761252632781,-353.82,0.00023723,2]
[392198615,1761252632790,-353.82,0.00024612,2]
[392198616,1761252632800,-1000.0,0.00024658,2]
[392198617,1761252632809,-500.0,0.00024932,2]
[392198618,1761252632819,-1037.64,0.00025,2]
[392198619,1761252632829,-27594.64404125,0.0002523,2]
[392198620,1761252633437,-14693.91635485,0.0002523,2]
[392198621,1761252633447,-500.0,0.00025373,2]
[392198622,1761252633457,-247.2961628,0.00025373,2]
[392198623,1761252633467,-500.0,0.00025373,2]
[392198624,1761252633477,-500.0,0.00025373,2]
[392198625,1761252633486,-500.0,0.00025373,2]
[392198626,1761252633495,-500.0,0.00025373,2]
[392198627,1761252633505,-150.86475471,0.00025373,2]
[392198628,1761252633515,-500.0,0.00025373,2]
[392198629,1761252633524,-500.0,0.00025373,2]
[392198630,1761252633534,-500.0,0.00025373,2]
[392198631,1761252633543,-117.21987937,0.00025373,2]
[392198632,1761252633567,-384.98886827,0.00025373,2]
[392198633,1761252633577,-500.0,0.00025373,2]
[392198634,1761252633587,-505.51997312,0.00025373,2]
[392198635,1761252633596,-504.74798052,0.00025373,2]
[392198636,1761252633606,-500.0,0.00025373,2]
[392198637,1761252633615,-503.6743994,0.00025373,2]
[392198638,1761252633625,-500.0,0.00025373,2]
[392198639,1761252633635,-500.0,0.00025373,2]
[392198640,1761252633644,-109101.44035227,0.00025382,2]
[392198641,1761252633654,-353.82,0.00025502,2]
[392198642,1761252633664,-180.15327017,0.00025921,2]
[392198643,1761252633675,-319.84672983,0.00025921,2]
[392198644,1761252633685,-1000.0,0.00025921,2]
[392198645,1761252633695,-1000.0,0.00025921,2]
[392198646,1761252633705,-461.489323,0.00025921,2]
[392198647,1761252633715,-1000.0,0.00025921,2]
[392198648,1761252633724,-1000.0,0.00025921,2]
[392198649,1761252633734,-500.0,0.00025921,2]
[392198650,1761252633743,-1000.0,0.00025921,2]
[392198651,1761252633753,-500.0,0.00025921,2]
[392198652,1761252633762,-1000.0,0.00025921,2]
[392198653,1761252633772,-166.68,0.00026246,2]
[392198654,1761252633783,-353.82,0.00026391,2]
[392198655,1761252633792,-1500.0,0.00026468,2]
[392198656,1761252633802,-1500.0,0.00026468,2]
[392198657,1761252633812,-1500.0,0.00026468,2]
[392198658,1761252633821,-340.89882913,0.00026468,2]
[392198659,1761252633831,-1000.0,0.00026468,2]
[392198660,1761252633840,-501.36215616,0.00026468,2]
[392198661,1761252633850,-251.85940406,0.00026642,2]
[392198662,1761252633860,-383.06,0.00026676,2]
[392198663,1761252633869,-1000.0,0.00027016,2]
[392198664,1761252633878,-2000.0,0.00027016,2]
[392198665,1761252633888,-500.0,0.00027016,2]
[392198666,1761252633898,-353.82,0.00027281,2]
[392198667,1761252633908,-510.99,0.00027397,2]
[392198668,1761252633917,-500.0,0.00027564,5]
[392198669,1761252633927,-188.28,0.00027625,2]
[392198670,1761252633937,-16609.83524622,0.00027849,2]
[392198671,1761252633952,-566.90798882,0.00027849,2]
[392198672,1761252633964,-986.17788644,0.00027849,2]
[392198673,1761252633979,-3128.29660856,0.00027849,2]
[392198674,1761252633991,-836.36343726,0.00027849,2]
[392198675,1761252634003,-1525.23305569,0.00027849,2]
[392198676,1761252634014,-782.07395127,0.00027849,2]
[392198677,1761252634026,-2802.49636648,0.00027849,2]
[392198678,1761252634045,-1701.6785179,0.00027849,2]
[392198679,1761252634057,-1113.6125,0.00027849,2]
[392198688,1761252637299,-500.0,0.00020186,2]
[392198689,1761252637308,-45.88814141,0.00020186,2]
[392198690,1761252637319,-454.11185859,0.00020186,2]
[392198691,1761252637328,-88.35423253,0.00020186,2]
[392198692,1761252637339,-411.64576747,0.00020186,2]
[392198693,1761252637349,-500.0,0.00020186,2]
[392198694,1761252637358,-500.0,0.00020186,2]
[392198695,1761252637368,-500.0,0.00020186,2]
[392198696,1761252637378,-262.46267609,0.00020186,2]
[392198697,1761252637387,-163.97471101,0.0002523,2]
[392198698,1761252637397,-12235.88483746,0.00027849,2]
[392198699,1761252637407,-173.22,0.00029396,2]
[392198700,1761252637416,-807.783,0.00029943,24]
[392198701,1761252637426,-4607.34,0.00032363,2]
[392198702,1761252637436,-150.0,0.0003279,2]
[392198703,1761252637445,-383.06,0.00033165,2]
[392198704,1761252637455,-16375.65,0.00033643,2]
[392198705,1761252637464,-734.19209775,0.00033715,2]
[392198706,1761252637474,-2047.91,0.00034745,2]
[392198707,1761252637484,-7691.64058572,0.00034907,2]
[392198708,1761252637493,-500.0,0.00035255,2]
[392198709,1761252637503,-471.0,0.00035318,2]
[392198710,1761252637512,-471.0,0.00035415,2]
[392198711,1761252637522,-471.0,0.00035478,2]
[392198712,1761252637532,-577.63,0.00035755,120]
[392198713,1761252637541,-3610.96933159,0.00035786,2]
[392198714,1761252637551,-471.0,0.00036061,2]
[392198715,1761252637560,-471.0,0.00036163,2]
[392198716,1761252637570,-2380.81,0.00036342,120]
[392198718,1761252637579,-471.0,0.00036516,2]
[392198720,1761252637589,-150.0,0.00036518,4]
[392198722,1761252637599,-150.0,0.00036518,4]
[392198723,1761252637608,-150.0,0.00036518,4]
[392198725,1761252637618,-150.0,0.00036518,4]
[392198727,1761252637627,-150.0,0.00036518,4]
[392198729,1761252637636,-150.0,0.00036518,4]
[392198731,1761252637646,-150.0,0.00036518,4]
[392198732,1761252637655,-150.0,0.00036518,4]
[392198733,1761252637664,-150.0,0.00036518,4]
[392198734,1761252637674,-150.0,0.00036518,4]
[392198735,1761252637683,-150.0,0.00036518,4]
[392198736,1761252637693,-150.0,0.00036518,4]
[392198737,1761252637702,-19011.54,0.00036551,2]
[392198738,1761252637711,-14329.0796712,0.00036563,3]
[392198739,1761252637720,-150.0,0.00036573,5]
[392198740,1761252637729,-150.0,0.00036573,5]
[392198741,1761252637739,-500.0,0.00036573,5]
[392198742,1761252637748,-624.16019572,0.00036573,5]
[392198743,1761252637757,-200.0,0.00036573,5]
[392198744,1761252637766,-150.0,0.00036573,5]
[392198745,1761252637775,-150.0,0.00036573,5]
[392198746,1761252637784,-150.0,0.00036573,5]
[392198747,1761252637793,-150.0,0.00036573,5]
[392198748,1761252637803,-150.0,0.00036573,5]
[392198749,1761252637813,-150.0,0.00036573,5]
[392198750,1761252637822,-152.42334983,0.00036573,5]
[392198751,1761252637832,-150.0,0.00036573,5]
[392198752,1761252637841,-150.0,0.00036573,5]
[392198753,1761252637851,-150.0,0.00036573,5]
[392198754,1761252637861,-150.0,0.00036573,5]
[392198755,1761252637870,-150.0,0.00036573,5]
[392198756,1761252637880,-1000.0,0.000366,2]
[392198757,1761252637889,-389.8634885,0.00036601,120]
[392198758,1761252637899,-500.0,0.00036601,10]
[392198759,1761252637908,-156.3,0.00036601,2]
[392198760,1761252637918,-199.0,0.00036604,7]
[392198761,1761252637928,-500.0,0.00036604,2]
[392198762,1761252637937,-500.0,0.00036604,120]
[392198763,1761252637946,-500.0,0.00036604,120]
[392198764,1761252637955,-500.0,0.00036604,120]
[392198765,1761252637965,-500.0,0.00036604,120]
[392198766,1761252637974,-500.0,0.00036604,120]
[392198767,1761252637983,-500.0,0.00036604,120]
[392198768,1761252637992,-499.99999984,0.00036604,120]
[392198769,1761252638002,-500.0,0.00036604,120]
[392198770,1761252638011,-581.22513456,0.00036604,120]
[392198771,1761252638021,-471.0,0.00036612,120]
[392198772,1761252638031,-471.0,0.00036625,2]
[392198773,1761252638040,-200.0,0.00036628,5]
[392198774,1761252638049,-249.18337873,0.00036628,5]
[392198775,1761252638059,-150.0,0.00036628,5]
[392198776,1761252638068,-150.0,0.00036628,5]
[392198777,1761252638077,-150.0,0.00036628,5]
[392198778,1761252638087,-200.0,0.00036683,5]
[392198779,1761252638096,-200.0,0.00036683,5]
[392198780,1761252638106,-307.0,0.00036713,2]
[392198781,1761252638115,-184.27125,0.00036806,2]
[392198782,1761252638125,-471.0,0.00036853,120]
[392198783,1761252638135,-238.59,0.00036878,8]
[392198784,1761252638145,-471.0,0.00036998,2]
[392198785,1761252638154,-471.0,0.00036999,7]
[392198786,1761252638164,-471.0,0.00037138,2]
[392198787,1761252638173,-14348.0894914,0.00037348,3]
[392198788,1761252638183,-151.0,0.00037355,14]
[392198789,1761252638192,-14329.0796712,0.00037358,3]
[392198790,1761252638201,-5000.0,0.00037368,2]
[392198791,1761252638211,-14329.0796712,0.00037448,3]
[392198792,1761252638220,-188.28,0.00037464,2]
[392198793,1761252638230,-471.0,0.00037465,7]
[392198794,1761252638239,-14348.0894914,0.0003749,3]
[392198795,1761252638249,-2000.0,0.000375,2]
[392198796,1761252638258,-500.0,0.000375,5]
[392198797,1761252638268,-500.0,0.000375,5]
[392198798,1761252638277,-500.47029499,0.000375,5]
[392198799,1761252638287,-500.0,0.000375,5]
[392198800,1761252638297,-471.0,0.00037547,7]
[392198801,1761252638306,-501.0,0.00037601,120]
[392198802,1761252638316,-471.0,0.00037719,2]
[392198803,1761252638325,-471.0,0.00037746,120]
[392198804,1761252638335,-471.0,0.0003786,2]
[392198805,1761252638345,-1091.0,0.00037875,5]
[392198806,1761252638354,-14348.0894914,0.00038028,3]
[392198807,1761252638364,-14329.0796712,0.00038038,3]
[392198808,1761252638374,-1000.0,0.00038048,5]
[392198809,1761252638384,-1000.0,0.00038048,5]
[392198810,1761252638394,-471.0,0.00038116,120]
[392198811,1761252638404,-471.0,0.00038117,7]
[392198812,1761252638414,-471.0,0.00038142,7]
[392198813,1761252638423,-471.0,0.00038305,2]
[392198814,1761252638433,-471.0,0.00038394,7]
[392198815,1761252638442,-471.0,0.00038413,120]
[392198816,1761252638452,-471.0,0.00038429,7]
[392198817,1761252638461,-277.35679052,0.00038482,2]
[392198818,1761252638471,-471.0,0.00038486,2]
[392198819,1761252638481,-289.76729964,0.00038596,5]
[392198820,1761252638492,-1000.0,0.00038596,5]
[392198821,1761252638501,-502.0,0.00038601,120]
[392198822,1761252638511,-14348.0894914,0.00039256,3]
[392198823,1761252638521,-503.0,0.00039601,120]
[392198824,1761252638530,-188.28,0.00039611,2]
[392198825,1761252638540,-14329.0796712,0.00039651,3]
[392198826,1761252638549,-383.06,0.00039654,2]
[392198827,1761252638559,-287.61899177,0.00039851,2]
[392198828,1761252638570,-1091.0,0.00039868,5]
[392198829,1761252638580,-500.0,0.00039973,5]
[392198830,1761252638589,-500.0,0.00039973,5]
[392198831,1761252638598,-271.07694409,0.00039973,5]
[392198832,1761252638608,-503.76549716,0.00039973,5]
[392198833,1761252638617,-160.15265772,0.00039973,2]
[392198834,1761252638626,-500.0,0.00039973,5]
[392198835,1761252638635,-500.0,0.00039973,5]
[392198836,1761252638644,-500.0,0.00039973,5]
[392198837,1761252638654,-200.0,0.00039973,5]
[392198838,1761252638664,-500.0,0.00039973,5]
[392198839,1761252638673,-500.0,0.00039973,5]
[392198840,1761252638682,-500.0,0.00039973,5]
[392198841,1761252638693,-500.0,0.00039973,5]
[392198842,1761252638702,-500.0,0.00039973,5]
[392198843,1761252638712,-500.0,0.00039973,5]
[392198844,1761252638721,-500.0,0.00039973,5]
[392198845,1761252638732,-500.0,0.00039973,5]
[392198846,1761252638741,-500.0,0.00039973,5]
[392198847,1761252638752,-500.0,0.00039973,5]
[392198848,1761252638761,-500.0,0.00039973,5]
[392198849,1761252638770,-28696.1789829,0.0003998,3]
[392198850,1761252638780,-42987.2390137,0.0003999,3]
[392198851,1761252638790,-18288.27133129,0.0003999,3]
[392198852,1761252638803,-532.70323546,0.0003999,3]
[392198853,1761252638815,-21873.82565131,0.0003999,3]
[392198854,1761252638841,-2021.58959784,0.0003999,3]
[392198855,1761252638881,-327.8786584,0.0003999,3]
[392198856,1761252638891,-15901.42121042,0.0004,120]
[392198857,1761252638927,-2150.29444335,0.0004,120]
[392198858,1761252638940,-2568.55524905,0.0004,120]
[392198859,1761252638985,-1312.17981011,0.0004,120]
[392198860,1761252638997,-3828.60448233,0.0004,120]
[392198861,1761252639013,-12309.67379072,0.0004,120]
[392198863,1761252640492,-58902.7534777,0.0004,120]
[392198864,1761252640502,-389.8634885,0.0004,120]
[392198865,1761252640512,-500.0,0.00040263,30]
[392198866,1761252640521,-500.0,0.00040355,30]
[392198867,1761252640531,-747.12255767,0.00040416,2]
[392198868,1761252640541,-500.0,0.00040425,120]
[392198869,1761252640551,-500.0,0.00040425,7]
[392198870,1761252640560,-500.0,0.00040425,120]
[392198871,1761252640570,-500.0,0.00040425,120]
[392198872,1761252640580,-86088.5369486,0.00040496,3]
[392198873,1761252640590,-1060.06839824,0.000405,120]
[392198874,1761252640599,-157619.876384,0.00040506,3]
[392198875,1761252640610,-28696.1789829,0.00040506,3]
[392198876,1761252640619,-173.40906324,0.00040506,7]
[392198877,1761252640630,-57316.3186849,0.00040516,3]
[392198878,1761252640640,-143480.894914,0.00040516,3]
[392198879,1761252640651,-1000.0,0.00040521,5]
[392198880,1761252640662,-1000.0,0.00040521,5]
[392198881,1761252640674,-1000.0,0.00040521,5]
[392198882,1761252640684,-1000.0,0.00040521,5]
[392198883,1761252640694,-1002.12364797,0.00040521,5]
[392198884,1761252640703,-1000.0,0.00040521,5]
[392198885,1761252640713,-1000.0,0.00040521,5]
[392198886,1761252640722,-1000.0,0.00040521,5]
[392198887,1761252640732,-1030.89090806,0.00040521,5]
[392198888,1761252640741,-1000.0,0.00040521,5]
[392198889,1761252640750,-500.30913434,0.00040521,5]
[392198890,1761252640760,-1000.0,0.00040521,5]
[392198891,1761252640769,-1000.0,0.00040521,5]
[392198892,1761252640778,-1000.0,0.00040521,5]
[392198893,1761252640787,-358.50418649,0.00040521,5]
[392198894,1761252640796,-500.0,0.00040525,120]
[392198895,1761252640806,-500.0,0.00040525,7]
[392198896,1761252640815,-509.4660759,0.00040525,120]
[392198897,1761252640825,-500.0,0.00040525,120]
[392198898,1761252640836,-500.0,0.00040525,120]
[392198899,1761252640846,-290053.3483562,0.00040526,2]
[392198900,1761252640856,-14154.2556628,0.00040526,2]
[392198901,1761252640865,-150.0,0.00040573,5]
[392198902,1761252640875,-156.39673461,0.00040573,5]
[392198903,1761252640885,-161.62489034,0.00040573,5]
[392198904,1761252640894,-150.0,0.00040573,5]
[392198905,1761252640903,-28696.1789829,0.00040577,3]
[392198906,1761252640912,-500.0,0.00040586,7]
[392198907,1761252640921,-500.0,0.00040586,120]
[392198908,1761252640930,-73692.39,0.00040587,4]
[392198909,1761252640941,-504.0,0.00040601,120]
[392198910,1761252640953,-3087.01969,0.0004063,5]
[392198911,1761252640963,-3087.01969,0.0004063,5]
[392198912,1761252640973,-400.0,0.00040658,5]
[392198913,1761252640983,-577.63,0.00040737,120]
[392198914,1761252640992,-800.0,0.00040745,30]
[392198915,1761252641002,-249860.67645474,0.00040757,120]
[392198916,1761252641011,-151.0,0.00040757,120]
[392198917,1761252641021,-151.0,0.00040757,120]
[392198918,1761252641030,-151.0,0.00040757,120]
[392198919,1761252641041,-151.0,0.00040757,120]
[392198920,1761252641051,-275.683668,0.00040757,120]
[392198921,1761252641059,-410.528596,0.00040757,120]
[392198922,1761252641069,-410.528596,0.00040757,120]
[392198923,1761252641078,-151.0,0.00040757,120]
[392198924,1761252641088,-410.528596,0.00040757,120]
[392198925,1761252641097,-265.687019,0.00040757,120]
[392198926,1761252641107,-410.528596,0.00040757,120]
[392198927,1761252641116,-151.0,0.00040757,120]
[392198928,1761252641126,-151.0,0.00040757,120]
[392198929,1761252641136,-151.0,0.00040757,120]
[392198930,1761252641145,-151.0,0.00040757,120]
[392198931,1761252641155,-151.0,0.00040757,60]
[392198932,1761252641164,-151.0,0.00040757,120]
[392198933,1761252641173,-151.0,0.00040757,120]
[392198934,1761252641183,-151.0,0.00040757,120]
[392198935,1761252641192,-159.356829,0.00040757,120]
[392198936,1761252641202,-151.0,0.00040757,120]
[392198937,1761252641212,-151.55363201,0.00040773,5]
[392198938,1761252641222,-152.92307,0.00040784,14]
[392198939,1761252641232,-151.0,0.00040784,120]
[392198940,1761252641241,-151.0,0.00040784,120]
[392198941,1761252641251,-151.0,0.00040784,120]
[392198942,1761252641260,-151.0,0.00040784,120]
[392198943,1761252641270,-151.0,0.00040784,120]
[392198944,1761252641279,-151.0,0.00040784,120]
[392198945,1761252641289,-151.0,0.00040784,120]
[392198946,1761252641298,-151.0,0.00040784,120]
[392198947,1761252641307,-162.247465,0.00040784,120]
[392198948,1761252641316,-154.401262,0.00040784,120]
[392198949,1761252641326,-151.0,0.00040784,120]
[392198950,1761252641336,-152.860398,0.00040784,120]
[392198951,1761252641345,-151.0,0.00040784,120]
[392198952,1761252641355,-151.0,0.00040784,120]
[392198953,1761252641364,-164.222576,0.00040784,120]
[392198954,1761252641374,-151.0,0.00040784,120]
[392198955,1761252641383,-164.222576,0.00040784,120]
[392198956,1761252641392,-164.222576,0.00040784,120]
[392198957,1761252641402,-151.0,0.00040784,120]
[392198958,1761252641412,-164.222576,0.00040784,120]
[392198959,1761252641421,-151.0,0.00040784,120]
[392198960,1761252641430,-152.433168,0.00040784,120]
[392198961,1761252641440,-151.0,0.00040784,120]
[392198962,1761252641450,-151.0,0.00040784,120]
[392198963,1761252641460,-151.0,0.00040784,120]
[392198964,1761252641470,-151.0,0.00040784,120]
[392198965,1761252641479,-151.0,0.00040784,120]
[392198966,1761252641489,-151.0,0.00040784,120]
[392198967,1761252641498,-151.0,0.00040784,120]
[392198968,1761252641507,-151.0,0.00040784,120]
[392198969,1761252641517,-151.0,0.00040784,120]
[392198970,1761252641526,-151.0,0.00040784,120]
[392198971,1761252641536,-161.398088,0.00040784,120]
[392198972,1761252641546,-151.0,0.00040784,120]
[392198973,1761252641555,-151.0,0.00040784,120]
[392198974,1761252641565,-151.0,0.00040784,120]
[392198975,1761252641574,-151.0,0.00040784,120]
[392198976,1761252641583,-151.0,0.00040784,120]
[392198977,1761252641592,-154.753151,0.00040784,30]
[392198978,1761252641602,-151.0,0.00040784,120]
[392198979,1761252641611,-151.0,0.00040784,120]
[392198980,1761252641620,-274.420913,0.00040784,120]
[392198981,1761252641630,-151.0,0.00040784,120]
[392198982,1761252641639,-151.0,0.00040784,120]
[392198983,1761252641648,-151.0,0.00040784,120]
[392198984,1761252641657,-151.0,0.00040784,120]
[392198985,1761252641667,-151.0,0.00040784,120]
[392198986,1761252641676,-151.0,0.00040784,120]
[392198987,1761252641686,-151.0,0.00040784,120]
[392198988,1761252641695,-151.0,0.00040784,120]
[392198989,1761252641704,-151.0,0.00040784,120]
[392198990,1761252641714,-162.198999,0.00040784,120]
[392198991,1761252641724,-151.0,0.00040784,120]
[392198992,1761252641733,-151.0,0.00040784,120]
[392198993,1761252641742,-155.281779,0.00040784,120]
[392198994,1761252641751,-151.0,0.00040784,120]
[392198995,1761252641761,-197.889813,0.00040784,120]
[392198996,1761252641770,-197.889813,0.00040784,120]
[392198997,1761252641784,-151.0,0.00040784,120]
[392198998,1761252641794,-197.889813,0.00040784,120]
[392198999,1761252641803,-197.889813,0.00040784,120]
[392199000,1761252641813,-201.275282,0.00040784,120]
[392199001,1761252641822,-151.0,0.00040784,120]
[392199002,1761252641831,-151.0,0.00040784,120]
[392199003,1761252641849,-153.454905,0.00040784,120]
[392199004,1761252641859,-3087.01968,0.00041,7]
[392199005,1761252641869,-3087.01968,0.00041,7]
[392199006,1761252641878,-3087.01968,0.00041,7]
[392199007,1761252641888,-3087.01969,0.00041,7]
[392199008,1761252641897,-200.0,0.00041067,5]
[392199009,1761252641910,-207.4,0.00041067,5]
[392199010,1761252641919,-578.20924308,0.00041067,5]
[392199011,1761252641928,-215.0738,0.00041067,5]
[392199012,1761252641938,-599.60298507,0.00041067,5]
[392199013,1761252641951,-223.0315306,0.00041067,5]
[392199014,1761252641962,-231.28369723,0.00041067,5]
[392199015,1761252641980,-621.78829552,0.00041067,5]
[392199016,1761252641994,-239.84119403,0.00041067,5]
[392199017,1761252642003,-644.79446246,0.00041067,5]
[392199018,1761252642013,-248.71531821,0.00041067,5]
[392199019,1761252642026,-247.57758345,0.00041067,5]
[392199020,1761252642036,-500.0,0.00041067,5]
[392199021,1761252642047,-257.91778498,0.00041067,5]
[392199022,1761252642057,-151.0,0.00041067,5]